fUSD/lending_fUSD_20240318
["ID","MTS","AMOUNT","RATE_DAILY","PERIOD"]
[319478804,1710799935842,-1220.28,0.00023835,2]
[319478805,1710799935857,-500.0,0.00023835,2]
[319478806,1710799935872,-524.26,0.00023835,2]
[319478807,1710799935887,-544.86,0.00023835,2]
[319478808,1710799935903,-1112.38,0.00023835,2]
[319478809,1710799935917,-1554.62,0.00023835,2]
[319478810,1710799935931,-500.0,0.00023835,2]
[319478811,1710799935946,-990.25,0.00023835,2]
[319478812,1710799935961,-1046.24,0.00023835,2]
[319478813,1710799935977,-501.2666952,0.00023835,2]
[319478814,1710799935991,-525.88,0.00023835,2]
[319478815,1710799936006,-615.98,0.00023835,2]
[319478816,1710799936020,-1017.43,0.00023835,2]
[319478817,1710799936034,-500.0,0.00023835,2]
[319478818,1710799936048,-1155.33,0.00023835,2]
[319478819,1710799936063,-3244.32,0.00023835,2]
[319478820,1710799936078,-527.83,0.00023835,2]
[319478821,1710799936094,-500.0,0.00023835,2]
[319478822,1710799936108,-1754.86,0.00023835,2]
[319478823,1710799936123,-1859.5,0.00023835,2]
[319478824,1710799936136,-489.14261838,0.00023835,2]
[319478825,1710799936150,-721.17,0.00023835,2]
[319478826,1710799936165,-1204.75,0.00023835,2]
[319478827,1710799936180,-1304.47,0.00023835,2]
[319478828,1710799936194,-500.0,0.00023835,2]
[319478829,1710799936210,-1387.32,0.00023835,2]
[319478830,1710799936224,-1084.75,0.00023835,2]
[319478831,1710799936239,-984.35,0.00023835,2]
[319478832,1710799936253,-500.0,0.00023835,2]
[319478833,1710799936267,-500.0,0.00023835,2]
[319478834,1710799936282,-500.0,0.00023835,2]
[319478835,1710799936295,-500.0,0.00023835,2]
[319478836,1710799936310,-500.0,0.00023835,2]
[319478837,1710799936326,-1042.11,0.00023835,2]
[319478838,1710799936341,-550.03,0.00023835,2]
[319478839,1710799936356,-500.0,0.00023835,2]
[319478840,1710799936371,-3263.23,0.00023835,2]
[319478841,1710799936385,-1980.05,0.00023835,2]
[319478842,1710799936400,-1334.24,0.00023835,2]
[319478843,1710799936414,-1006.81,0.00023835,2]
[319478844,1710799936428,-500.0,0.00023835,2]
[319478845,1710799936444,-500.0,0.00023835,2]
[319478846,1710799936459,-879.01,0.00023835,2]
[319478847,1710799936473,-577.06,0.00023835,2]
[319478848,1710799936487,-772.45,0.00023835,2]
[319478849,1710799936501,-1289.15,0.00023835,2]
[319478850,1710799936515,-500.0,0.00023835,2]
[319478851,1710799936530,-500.0,0.00023835,2]
[319478852,1710799936545,-500.0,0.00023835,2]
[319478853,1710799936560,-1162.86,0.00023835,2]
[319478854,1710799936576,-500.0,0.00023835,2]
[319478855,1710799936592,-539.59,0.00023835,2]
[319478856,1710799936607,-500.0,0.00023835,2]
[319478857,1710799936621,-1284.59,0.00023835,2]
[319478858,1710799936636,-1343.86,0.00023835,2]
[319478859,1710799936650,-2423.47,0.00023835,2]
[319478860,1710799936666,-500.0,0.00023835,2]
[319478861,1710799936680,-790.0,0.00023835,2]
[319478862,1710799936694,-1561.78,0.00023835,2]
[319478863,1710799936708,-2345.93,0.00023835,2]
[319478864,1710799936722,-1543.03,0.00023835,2]
[319478865,1710799936734,-688.89,0.00023835,2]
[319478866,1710799936748,-500.0,0.00023835,2]
[319478867,1710799936762,-500.0,0.00023835,2]
[319478868,1710799936776,-1604.71,0.00023835,2]
[319478869,1710799936791,-779.42,0.00023835,2]
[319478870,1710799936805,-500.0,0.00023835,2]
[319478871,1710799936820,-500.0,0.00023835,2]
[319478872,1710799936834,-1455.91,0.00023835,2]
[319478873,1710799936849,-964.51,0.00023835,2]
[319478874,1710799936864,-500.0,0.00023835,2]
[319478875,1710799936879,-865.84,0.00023835,2]
[319478876,1710799936894,-500.0,0.00023835,2]
[319478877,1710799936908,-1347.47,0.00023835,2]
[319478878,1710799936922,-1883.82,0.00023835,2]
[319478879,1710799936935,-500.0,0.00023835,2]
[319478880,1710799936949,-500.0,0.00023835,2]
[319478881,1710799936963,-615.15,0.00023835,2]
[319478882,1710799936977,-500.0,0.00023835,2]
[319478883,1710799936991,-500.0,0.00023835,2]
[319478884,1710799937005,-743.05,0.00023835,2]
[319478885,1710799937019,-501.64653366,0.00023835,2]
[319478886,1710799937033,-1288.43,0.00023835,2]
[319478887,1710799937047,-1050.86,0.00023835,2]
[319478888,1710799937060,-532.05,0.00023835,2]
[319478889,1710799937075,-568.35,0.00023835,2]
[319478890,1710799937088,-500.0,0.00023835,2]
[319478891,1710799937103,-500.0,0.00023835,2]
[319478892,1710799937117,-500.0,0.00023835,2]
[319478893,1710799937137,-500.0,0.00023835,2]
[319478894,1710799937151,-500.0,0.00023835,2]
[319478895,1710799937166,-801.95,0.00023835,2]
[319478896,1710799937180,-3692.13,0.00023835,2]
[319478897,1710799937194,-1387.79,0.00023835,2]
[319478898,1710799937209,-1021.88,0.00023835,2]
[319478899,1710799937224,-290.81611336,0.00023835,2]
[319478900,1710799937238,-1736.34,0.00023835,2]
[319478901,1710799937253,-500.0,0.00023835,2]
[319478902,1710799937268,-2682.4,0.00023835,2]
[319478903,1710799937283,-722.05,0.00023835,2]
[319478904,1710799937298,-500.0,0.00023835,2]
[319478905,1710799937313,-917.72,0.00023835,2]
[319478906,1710799937328,-1582.16,0.00023835,2]
[319478907,1710799937343,-500.0,0.00023835,2]
[319478908,1710799937358,-500.0,0.00023835,2]
[319478909,1710799937374,-500.0,0.00023835,2]
[319478910,1710799937389,-500.0,0.00023835,2]
[319478911,1710799937404,-500.0,0.00023835,2]
[319478912,1710799937418,-500.0,0.00023835,2]
[319478913,1710799937434,-500.0,0.00023835,2]
[319478914,1710799937449,-500.0,0.00023835,2]
[319478915,1710799937463,-899.67,0.00023835,2]
[319478916,1710799937478,-500.0,0.00023835,2]
[319478917,1710799937493,-500.0,0.00023835,2]
[319478918,1710799937507,-1197.99,0.00023835,2]
[319478919,1710799937521,-2570.57,0.00023835,2]
[319478920,1710799937535,-832.49,0.00023835,2]
[319478921,1710799937550,-500.0,0.00023835,2]
[319478922,1710799937564,-500.0,0.00023835,2]
[319478923,1710799937579,-500.0,0.00023835,2]
[319478924,1710799937595,-500.0,0.00023835,2]
[319478925,1710799937609,-2336.68,0.00023835,2]
[319478926,1710799937624,-714.57,0.00023835,2]
[319478927,1710799937639,-572.14,0.00023835,2]
[319478928,1710799937653,-500.0,0.00023835,2]
[319478929,1710799937670,-570.84,0.00023835,2]
[319478930,1710799937685,-500.0,0.00023835,2]
[319478931,1710799937699,-1267.22,0.00023835,2]
[319478932,1710799937714,-500.0,0.00023835,2]
[319478933,1710799937728,-713.53,0.00023835,2]
[319478934,1710799937743,-1986.27,0.00023835,2]
[319478935,1710799937758,-645.48770121,0.00023835,2]
[319478936,1710799937772,-500.0,0.00023835,2]
[319478937,1710799937786,-500.0,0.00023835,2]
[319478938,1710799937800,-1031.5,0.00023835,2]
[319478939,1710799937814,-500.0,0.00023835,2]
[319478940,1710799937828,-1487.73,0.00023835,2]
[319478941,1710799938176,-500.0,0.00023835,2]
[319478942,1710799938197,-1462.06,0.00023835,2]
[319478943,1710799938207,-2831.64,0.00023835,2]
[319478944,1710799938217,-500.0,0.00023835,2]
[319478945,1710799938227,-662.67,0.00023835,2]
[319478946,1710799938236,-1113.91,0.00023835,2]
[319478947,1710799938245,-1374.98,0.00023835,2]
[319478948,1710799938254,-500.0,0.00023835,2]
[319478949,1710799938263,-2453.88,0.00023835,2]
[319478950,1710799938272,-584.72,0.00023835,2]
[319478951,1710799938281,-500.0,0.00023835,2]
[319478952,1710799938290,-1349.99,0.00023835,2]
[319478953,1710799938300,-1580.15,0.00023835,2]
[319478954,1710799938310,-1466.21,0.00023835,2]
[319478955,1710799938319,-500.0,0.00023835,2]
[319478956,1710799938329,-500.0,0.00023835,2]
[319478957,1710799938338,-1118.72,0.00023835,2]
[319478958,1710799938347,-500.0,0.00023835,2]
[319478959,1710799938357,-606.91,0.00023835,2]
[319478960,1710799938366,-500.0,0.00023835,2]
[319478961,1710799938375,-1958.41,0.00023835,2]
[319478962,1710799938384,-605.4,0.00023835,2]
[319478963,1710799938394,-500.0,0.00023835,2]
[319478964,1710799938404,-500.0,0.00023835,2]
[319478965,1710799938413,-500.0,0.00023835,2]
[319478966,1710799938424,-500.0,0.00023835,2]
[319478967,1710799938434,-942.42,0.00023835,2]
[319478968,1710799938444,-569.15,0.00023835,2]
[319478969,1710799938454,-1400.41,0.00023835,2]
[319478970,1710799938463,-500.0,0.00023835,2]
[319478971,1710799938472,-941.12,0.00023835,2]
[319478972,1710799938482,-500.0,0.00023835,2]
[319478973,1710799938492,-500.0,0.00023835,2]
[319478974,1710799938502,-500.0,0.00023835,2]
[319478975,1710799938512,-500.0,0.00023835,2]
[319478976,1710799938522,-1781.44,0.00023835,2]
[319478977,1710799938532,-500.0,0.00023835,2]
[319478978,1710799938542,-1912.95,0.00023835,2]
[319478979,1710799938552,-713.68,0.00023835,2]
[319478980,1710799938561,-1203.57,0.00023835,2]
[319478981,1710799938570,-905.72,0.00023835,2]
[319478982,1710799938580,-500.0,0.00023835,2]
[319478983,1710799938593,-500.0,0.00023835,2]
[319478984,1710799938602,-4393.41,0.00023835,2]
[319478985,1710799938612,-2303.75,0.00023835,2]
[319478986,1710799938622,-500.0,0.00023835,2]
[319478987,1710799938632,-1144.14,0.00023835,2]
[319478988,1710799938642,-1401.22,0.00023835,2]
[319478989,1710799938651,-511.29,0.00023835,2]
[319478990,1710799938663,-1229.49,0.00023835,2]
[319478991,1710799938674,-500.0,0.00023835,2]
[319478992,1710799938682,-1432.28,0.00023835,2]
[319478993,1710799938691,-500.0,0.00023835,2]
[319478994,1710799938701,-516.82,0.00023835,2]
[319478995,1710799938710,-500.0,0.00023835,2]
[319478996,1710799938720,-1305.33,0.00023835,2]
[319478997,1710799938729,-581.47,0.00023835,2]
[319478998,1710799938739,-678.53,0.00023835,2]
[319478999,1710799938748,-737.52,0.00023835,2]
[319479000,1710799938758,-500.0,0.00023835,2]
[319479001,1710799938768,-1022.21,0.00023835,2]
[319479002,1710799938777,-1654.91,0.00023835,2]
[319479003,1710799938787,-500.0,0.00023835,2]
[319479004,1710799938796,-500.0,0.00023835,2]
[319479005,1710799938806,-745.31,0.00023835,2]
[319479006,1710799938815,-500.0,0.00023835,2]
[319479007,1710799938824,-7202.93,0.00023835,2]
[319479008,1710799938833,-20689.66,0.00023835,2]
[319479009,1710799938842,-2992.02,0.00023835,2]
[319479010,1710799938852,-500.0,0.00023835,2]
[319479011,1710799938861,-638.22,0.00023835,2]
[319479012,1710799938870,-1157.8,0.00023835,2]
[319479013,1710799938879,-1110.24,0.00023835,2]
[319479014,1710799938888,-500.0,0.00023835,2]
[319479015,1710799938898,-1088.66,0.00023835,2]
[319479016,1710799938907,-1090.38,0.00023835,2]
[319479017,1710799938916,-1367.92,0.00023835,2]
[319479018,1710799938925,-500.0,0.00023835,2]
[319479019,1710799938934,-8212.3,0.00023835,2]
[319479020,1710799938944,-500.0,0.00023835,2]
[319479021,1710799938953,-1716.46,0.00023835,2]
[319479022,1710799938962,-500.0,0.00023835,2]
[319479023,1710799938971,-1412.21,0.00023835,2]
[319479024,1710799938980,-500.0,0.00023835,2]
[319479025,1710799938990,-605.07,0.00023835,2]
[319479026,1710799938999,-622.92,0.00023835,2]
[319479027,1710799939008,-738.47,0.00023835,2]
[319479028,1710799939017,-6843.13,0.00023835,2]
[319479029,1710799939026,-642.05,0.00023835,2]
[319479030,1710799939035,-2375.9,0.00023835,2]
[319479031,1710799939044,-1814.94,0.00023835,2]
[319479032,1710799939053,-720.26,0.00023835,2]
[319479033,1710799939062,-500.0,0.00023835,2]
[319479034,1710799939071,-500.0,0.00023835,2]
[319479035,1710799939081,-7701.15,0.00023835,2]
[319479036,1710799939090,-2621.03,0.00023835,2]
[319479037,1710799939100,-70618.05,0.00023835,2]
[319479038,1710799939109,-1283.55,0.00023835,2]
[319479039,1710799939118,-867.51,0.00023835,2]
[319479040,1710799939127,-500.0,0.00023835,2]
[319479041,1710799939136,-933.88,0.00023835,2]
[319479042,1710799939145,-497.46049746,0.00023835,2]
[319479043,1710799939154,-417.8506663,0.00023835,2]
[319479044,1710799939163,-651.4,0.00023835,2]
[319479045,1710799939173,-1968.24,0.00023835,2]
[319479046,1710799939182,-1507.28,0.00023835,2]
[319479047,1710799939191,-15625.12,0.00023835,2]
[319479048,1710799939201,-2930.24,0.00023835,2]
[319479049,1710799939210,-500.0,0.00023835,2]
[319479050,1710799939219,-386.07,0.00023835,2]
[319479051,1710799939228,-908.19,0.00023835,2]
[319479052,1710799939238,-500.0,0.00023835,2]
[319479053,1710799939247,-836.99,0.00023835,2]
[319479054,1710799939256,-1649.1,0.00023835,2]
[319479055,1710799939266,-500.0,0.00023835,2]
[319479056,1710799939275,-3638.93,0.00023835,2]
[319479057,1710799939285,-1000.59,0.00023835,2]
[319479058,1710799939294,-500.0,0.00023835,2]
[319479059,1710799939303,-500.0,0.00023835,2]
[319479060,1710799939312,-2240.25,0.00023835,2]
[319479061,1710799939322,-500.0,0.00023835,2]
[319479062,1710799939331,-500.0,0.00023835,2]
[319479063,1710799939340,-500.0,0.00023835,2]
[319479064,1710799939349,-876.56,0.00023835,2]
[319479065,1710799939358,-1827.91,0.00023835,2]
[319479066,1710799939367,-500.0,0.00023835,2]
[319479067,1710799939376,-2226.67,0.00023835,2]
[319479068,1710799939385,-4659.24,0.00023835,2]
[319479069,1710799939394,-500.0,0.00023835,2]
[319479070,1710799939404,-500.0,0.00023835,2]
[319479071,1710799939413,-500.0,0.00023835,2]
[319479072,1710799939423,-3729.26,0.00023835,2]
[319479073,1710799939432,-500.0,0.00023835,2]
[319479074,1710799939441,-3606.56,0.00023835,2]
[319479075,1710799939450,-500.0,0.00023835,2]
[319479076,1710799939460,-1207.02,0.00023835,2]
[319479077,1710799939469,-963.32,0.00023835,2]
[319479078,1710799939478,-28470.72,0.00023835,2]
[319479079,1710799939487,-2980.27,0.00023835,2]
[319479080,1710799939497,-1000.56,0.00023835,2]
[319479081,1710799939507,-500.0,0.00023835,2]
[319479082,1710799939517,-500.0,0.00023835,2]
[319479083,1710799939527,-1014.54,0.00023835,2]
[319479084,1710799939536,-500.0,0.00023835,2]
[319479085,1710799939546,-1007.55,0.00023835,2]
[319479086,1710799939556,-500.0,0.00023835,2]
[319479087,1710799939565,-12991.16,0.00023835,2]
[319479088,1710799939575,-825.64,0.00023835,2]
[319479089,1710799939588,-1967.21,0.00023835,2]
[319479090,1710799939597,-500.0,0.00023835,2]
[319479091,1710799939606,-500.0,0.00023835,2]
[319479092,1710799939616,-989.42,0.00023835,2]
[319479093,1710799939626,-3061.78,0.00023835,2]
[319479094,1710799939636,-3350.06,0.00023835,2]
[319479095,1710799939646,-500.0,0.00023835,2]
[319479096,1710799939656,-1418.83,0.00023835,2]
[319479097,1710799939667,-578.72,0.00023835,2]
[319479098,1710799939677,-500.0,0.00023835,2]
[319479099,1710799939686,-1283.92,0.00023835,2]
[319479100,1710799939695,-1017.47,0.00023835,2]
[319479101,1710799939706,-500.0,0.00023835,2]
[319479102,1710799939715,-500.0,0.00023835,2]
[319479103,1710799939725,-793.34,0.00023835,2]
[319479104,1710799939734,-500.0,0.00023835,2]
[319479105,1710799939743,-544.38,0.00023835,2]
[319479106,1710799939752,-1383.54,0.00023835,2]
[319479107,1710799939761,-3058.85,0.00023835,2]
[319479108,1710799939771,-4863.68,0.00023835,2]
[319479109,1710799939781,-500.0,0.00023835,2]
[319479110,1710799939790,-500.0,0.00023835,2]
[319479111,1710799939799,-3420.67,0.00023835,2]
[319479112,1710799939809,-1467.98,0.00023835,2]
[319479113,1710799939819,-500.0,0.00023835,2]
[319479114,1710799939829,-524.47253344,0.00023835,2]
[319479115,1710799939838,-500.0,0.00023835,2]
[319479116,1710799939848,-909.74,0.00023835,2]
[319479117,1710799939857,-500.0,0.00023835,2]
[319479118,1710799939867,-500.0,0.00023835,2]
[319479119,1710799939877,-616.14,0.00023835,2]
[319479120,1710799939886,-500.0,0.00023835,2]
[319479121,1710799939895,-1472.05,0.00023835,2]
[319479122,1710799939904,-500.0,0.00023835,2]
[319479123,1710799939913,-1391.49,0.00023835,2]
[319479124,1710799939923,-1026.28,0.00023835,2]
[319479125,1710799939932,-500.0,0.00023835,2]
[319479126,1710799939941,-501.4,0.00023835,2]
[319479127,1710799939950,-500.0,0.00023835,2]
[319479128,1710799939959,-1044.22,0.00023835,2]
[319479129,1710799939968,-736.5,0.00023835,2]
[319479130,1710799939978,-500.0,0.00023835,2]
[319479131,1710799939987,-500.0,0.00023835,2]
[319479132,1710799939996,-1726.54,0.00023835,2]
[319479133,1710799940006,-2302.64,0.00023835,2]
[319479134,1710799940015,-1165.44,0.00023835,2]
[319479135,1710799940024,-12189.86,0.00023835,2]
[319479136,1710799940033,-1530.51,0.00023835,2]
[319479137,1710799940042,-1375.05,0.00023835,2]
[319479138,1710799940052,-1316.33,0.00023835,2]
[319479139,1710799940061,-728.8,0.00023835,2]
[319479140,1710799940071,-515.52,0.00023835,2]
[319479141,1710799940080,-1294.68,0.00023835,2]
[319479142,1710799940089,-500.0,0.00023835,2]
[319479143,1710799940098,-500.0,0.00023835,2]
[319479144,1710799940107,-1545.51,0.00023835,2]
[319479145,1710799940116,-1925.65,0.00023835,2]
[319479146,1710799940126,-500.0,0.00023835,2]
[319479147,1710799940136,-6062.83,0.00023835,2]
[319479148,1710799940145,-1677.75,0.00023835,2]
[319479149,1710799940155,-500.0,0.00023835,2]
[319479150,1710799940163,-500.0,0.00023835,2]
[319479151,1710799940173,-630.76,0.00023835,2]
[319479152,1710799940182,-697.84,0.00023835,2]
[319479153,1710799940191,-1539.77,0.00023835,2]
[319479154,1710799940201,-1111.24,0.00023835,2]
[319479155,1710799940210,-500.0,0.00023835,2]
[319479156,1710799940219,-500.0,0.00023835,2]
[319479157,1710799940229,-1154.87,0.00023835,2]
[319479158,1710799940239,-500.0,0.00023835,2]
[319479159,1710799940248,-2083.43,0.00023835,2]
[319479160,1710799940257,-500.0,0.00023835,2]
[319479161,1710799940266,-500.0,0.00023835,2]
[319479162,1710799940276,-873.95,0.00023835,2]
[319479163,1710799940285,-572.93,0.00023835,2]
[319479164,1710799940295,-1218.6,0.00023835,2]
[319479165,1710799940305,-503.77253691,0.00023835,2]
[319479166,1710799940314,-500.0,0.00023835,2]
[319479167,1710799940324,-500.0,0.00023835,2]
[319479168,1710799940334,-762.41,0.00023835,2]
[319479169,1710799940343,-805.44,0.00023835,2]
[319479170,1710799940352,-2278.77,0.00023835,2]
[319479171,1710799940362,-391.34751648,0.00023835,2]
[319479172,1710799940372,-2011.92,0.00023835,2]
[319479173,1710799940381,-500.0,0.00023835,2]
[319479174,1710799940390,-2062.21,0.00023835,2]
[319479175,1710799940400,-971.93,0.00023835,2]
[319479176,1710799940410,-500.0,0.00023835,2]
[319479177,1710799940420,-768.87,0.00023835,2]
[319479178,1710799940430,-500.0,0.00023835,2]
[319479179,1710799940440,-1606.59,0.00023835,2]
[319479180,1710799940450,-500.0,0.00023835,2]
[319479181,1710799940459,-1340.16,0.00023835,2]
[319479182,1710799940468,-500.0,0.00023835,2]
[319479183,1710799940478,-500.0,0.00023835,2]
[319479184,1710799940489,-1007.76,0.00023835,2]
[319479185,1710799940498,-4162.89,0.00023835,2]
[319479186,1710799940508,-382.39098285,0.00023835,2]
[319479187,1710799940518,-1051.06,0.00023835,2]
[319479188,1710799940527,-500.0,0.00023835,2]
[319479189,1710799940537,-699.3,0.00023835,2]
[319479190,1710799940547,-518.73,0.00023835,2]
[319479191,1710799940557,-1416.75,0.00023835,2]
[319479192,1710799940566,-1220.37,0.00023835,2]
[319479193,1710799940577,-500.0,0.00023835,2]
[319479194,1710799940590,-1475.69,0.00023835,2]
[319479195,1710799940599,-1579.78,0.00023835,2]
[319479196,1710799940609,-960.76,0.00023835,2]
[319479197,1710799940620,-685.26,0.00023835,2]
[319479198,1710799940630,-500.0,0.00023835,2]
[319479199,1710799940640,-500.0,0.00023835,2]
[319479200,1710799940650,-598.24,0.00023835,2]
[319479201,1710799940660,-3689.48,0.00023835,2]
[319479202,1710799940672,-1883.02,0.00023835,2]
[319479203,1710799940682,-500.0,0.00023835,2]
[319479204,1710799940691,-725.93,0.00023835,2]
[319479205,1710799940701,-500.0,0.00023835,2]
[319479206,1710799940711,-500.0,0.00023835,2]
[319479207,1710799940720,-582.85,0.00023835,2]
[319479208,1710799940730,-597.67,0.00023835,2]
[319479209,1710799940739,-945.24,0.00023835,2]
[319479210,1710799940748,-3264.27,0.00023835,2]
[319479211,1710799940758,-1114.59,0.00023835,2]
[319479212,1710799940767,-1101.09,0.00023835,2]
[319479213,1710799940777,-3081.47,0.00023835,2]
[319479214,1710799940786,-1090.35,0.00023835,2]
[319479215,1710799940795,-15199.29,0.00023835,2]
[319479216,1710799940805,-525.35,0.00023835,2]
[319479217,1710799940814,-545.12,0.00023835,2]
[319479218,1710799940823,-524.35,0.00023835,2]
[319479219,1710799940833,-926.2,0.00023835,2]
[319479220,1710799940842,-738.48,0.00023835,2]
[319479221,1710799940852,-500.0,0.00023835,2]
[319479222,1710799940862,-661.43,0.00023835,2]
[319479223,1710799940872,-500.0,0.00023835,2]
[319479224,1710799940882,-521.01,0.00023835,2]
[319479225,1710799940890,-2791.36,0.00023835,2]
[319479226,1710799940900,-1479.1,0.00023835,2]
[319479227,1710799940909,-3873.88,0.00023835,2]
[319479228,1710799940919,-500.0,0.00023835,2]
[319479229,1710799940929,-8062.17,0.00023835,2]
[319479230,1710799940938,-500.0,0.00023835,2]
[319479231,1710799940947,-1469.15,0.00023835,2]
[319479232,1710799940957,-1368.38,0.00023835,2]
[319479233,1710799940966,-500.0,0.00023835,2]
[319479234,1710799940976,-578.84,0.00023835,2]
[319479235,1710799940985,-500.0,0.00023835,2]
[319479236,1710799940995,-436.47563229,0.00023835,2]
[319479237,1710799941004,-500.0,0.00023835,2]
[319479238,1710799941014,-500.0,0.00023835,2]
[319479239,1710799941023,-625.58,0.00023835,2]
[319479240,1710799941032,-500.0,0.00023835,2]
[319479241,1710799941041,-659.71,0.00023835,2]
[319479242,1710799941050,-500.0,0.00023835,2]
[319479243,1710799941060,-1165.69,0.00023835,2]
[319479244,1710799941069,-522.17,0.00023835,2]
[319479245,1710799941078,-500.0,0.00023835,2]
[319479246,1710799941087,-547.31,0.00023835,2]
[319479247,1710799941096,-4551.04,0.00023835,2]
[319479248,1710799941106,-500.0,0.00023835,2]
[319479249,1710799941115,-1931.5,0.00023835,2]
[319479250,1710799941124,-500.0,0.00023835,2]
[319479251,1710799941134,-1852.16,0.00023835,2]
[319479252,1710799941143,-500.0,0.00023835,2]
[319479253,1710799941153,-5194.45,0.00023835,2]
[319479254,1710799941162,-4366.56,0.00023835,2]
[319479255,1710799941173,-2626.87,0.00023835,2]
[319479256,1710799941182,-1560.19,0.00023835,2]
[319479257,1710799941191,-500.0,0.00023835,2]
[319479258,1710799941200,-4566.9,0.00023835,2]
[319479259,1710799941210,-643.53,0.00023835,2]
[319479260,1710799941219,-574.42,0.00023835,2]
[319479261,1710799941228,-7356.66,0.00023835,2]
[319479262,1710799941237,-500.0,0.00023835,2]
[319479263,1710799941246,-2335.37,0.00023835,2]
[319479264,1710799941256,-1433.97,0.00023835,2]
[319479265,1710799941265,-1302.8,0.00023835,2]
[319479266,1710799941275,-500.0,0.00023835,2]
[319479267,1710799941285,-12149.23,0.00023835,2]
[319479268,1710799941294,-500.0,0.00023835,2]
[319479269,1710799941304,-596.59,0.00023835,2]
[319479270,1710799941314,-976.06,0.00023835,2]
[319479271,1710799941593,-505.18246713,0.00023835,2]
[319479272,1710799941605,-500.0,0.00023835,2]
[319479273,1710799941617,-773.37,0.00023835,2]
[319479274,1710799941627,-500.0,0.00023835,2]
[319479275,1710799941637,-282.85707662,0.00023835,2]
[319479276,1710799941647,-500.0,0.00023835,2]
[319479277,1710799941657,-500.0,0.00023835,2]
[319479278,1710799941667,-12163.47,0.00023835,2]
[319479279,1710799941680,-500.0,0.00023835,2]
[319479280,1710799941690,-500.0,0.00023835,2]
[319479281,1710799941700,-1666.88,0.00023835,2]
[319479282,1710799941710,-1040.95,0.00023835,2]
[319479283,1710799941721,-4014.74,0.00023835,2]
[319479284,1710799941730,-676.8,0.00023835,2]
[319479285,1710799941740,-500.0,0.00023835,2]
[319479286,1710799941750,-2937.18,0.00023835,2]
[319479287,1710799941759,-798.37,0.00023835,2]
[319479288,1710799941769,-500.0,0.00023835,2]
[319479289,1710799941779,-514.53,0.00023835,2]
[319479290,1710799941790,-630.18,0.00023835,2]
[319479291,1710799941799,-1092.32,0.00023835,2]
[319479292,1710799941809,-500.0,0.00023835,2]
[319479293,1710799941819,-4002.95,0.00023835,2]
[319479294,1710799941830,-500.0,0.00023835,2]
[319479295,1710799941840,-3032.32,0.00023835,2]
[319479296,1710799941850,-1825.34,0.00023835,2]
[319479297,1710799941861,-713.44,0.00023835,2]
[319479298,1710799941871,-2538.34,0.00023835,2]
[319479299,1710799941881,-500.0,0.00023835,2]
[319479300,1710799941891,-500.0,0.00023835,2]
[319479301,1710799941901,-1704.18,0.00023835,2]
[319479302,1710799941910,-2264.59,0.00023835,2]
[319479303,1710799941921,-500.0,0.00023835,2]